Cogmind - Beta 14 @@@ ROGUE MODE // 2024.08.09 @ 20:44:44 // Winter2019/RPGLIKE Player: badjay Result: Destroyed by Y-45 Defender with Heavy Assault Rifle Performance ------------- Evolutions (1) 500 Regions Visited (3) 600 Robots Destroyed (20) 100 Value Destroyed (438) 438 Prototype IDs (3) 60 Alien Tech Used (0) 0 Bonus (80) 80 TOTAL SCORE: 1778 Bonus ------- High Alert Combat Kills 80 Cogmind --------- Core Integrity 0/600 Matter 300/300 Energy 43/125 System Corruption 0% Temperature Hot (248) Movement Flying (37) Location -9/Materials Parts ------- > --- POWER (1) -------- Light Ion Engine > --- PROPULSION (2) --- Improved Flight Unit Improved Flight Unit > --- UTILITY (1) ------ (None) > --- WEAPON (2) ------- Heavy EM Pulse Gun EM Shotgun > --- INVENTORY (0) ---- (None) Peak State ------------ > --- POWER ------------ Light Ion Engine > --- PROPULSION ------- Improved Flight Unit Improved Flight Unit > --- UTILITY ---------- (None) > --- WEAPON ----------- EM Shotgun Rocket Launcher > --- INVENTORY -------- (None) [Rating: 11] Favorites ----------- Power Light Ion Engine Engine Light Ion Engine Propulsion Improved Flight Unit Flight Unit Improved Flight Unit Utility Light Armor Plating Protection Light Armor Plating Weapon EM Shotgun Energy Gun EM Shotgun Launcher Rocket Launcher Build | -11 -10 -10 -9 ------- Run | Yrd Mat Min Mat Slots Evolved 2 | . . . 2 Power . | . . . . Propulsion 1 | . . . 1 Utility . | . . . . Weapon 1 | . . . 1 Parts Attached 14 | . . 2 12 Power 3 | . . . 3 Engine 3 | . . . 3 Core . | . . . . Reactor . | . . . . Propulsion 4 | . . . 4 Treads . | . . . . Leg . | . . . . Wheel . | . . . . Hover . | . . . . Flight 4 | . . . 4 Utility 1 | . . 1 . Device . | . . . . Storage . | . . . . Processor . | . . . . Hackware . | . . . . Protection 1 | . . 1 . Artifact . | . . . . Weapon 6 | . . 1 5 Energy Gun 4 | . . 1 3 Energy Cannon . | . . . . Ballistic Gun . | . . . . Ballistic Cannon . | . . . . Launcher 2 | . . . 2 Special Weapon . | . . . . Impact Weapon . | . . . . Slashing Weapon . | . . . . Piercing Weapon . | . . . . Special Melee Weapon . | . . . . Unidentified Prototypes 1 | . . . 1 Parts Lost 1 | . . . 1 Power . | . . . . Propulsion . | . . . . Utility 1 | . . . 1 Weapon . | . . . . Highest Loss Streak 1 | . . . 1 To Critical Strikes . | . . . . Average Slot Usage (%) 39 | . . 22 55 Engine 6 | . . . 9 Flight 12 | . . . 20 Protection 7 | . . 22 5 Energy Gun 8 | . . . 12 Launcher 4 | . . . 7 Peak Build Rating 11 | . . 2 11 Average Rating 3 | . . . 5 On Entrance . | . . . 1 Naked Turns 178 | . 131 12 35 Heaviest Build 10 | . . 3 10 Greatest Support 10 | 3 3 3 10 Greatest Overweight (x) 1 | . . . 1 Average Overweight (x) . | . . . . Largest Inventory Capacity . | . . . . Average Capacity . | . . . . Most Carried . | . . . . Average Carried . | . . . . Final Capacity . | . . . . Final Carried . | . . . . Class Distribution -------------------- 96% | Hacker-Mutant 3% | Mutant Dominant Class ---------------- Hacker-Mutant | -10/Materials Hacker-Mutant | -10/Mines Hacker-Mutant | -9/Materials Resources | -11 -10 -10 -9 ----------- Run | Yrd Mat Min Mat Matter Collected 484 | 200 . 20 264 Remotely . | . . . . Salvage Created 467 | . . 60 407 Parts 31 | . . 2 29 Haulers Intercepted . | . . . . Recyclers Shooed . | . . . . Parts Field Recycled . | . . . . Retrieved Matter . | . . . . Parts Self-Destructed . | . . . . Prevented . | . . . . Kills | -11 -10 -10 -9 ------- Run | Yrd Mat Min Mat Combat Hostiles Destroyed 17 | . . 1 16 Guns 8 | . . 1 7 AOE 9 | . . . 9 Classes Destroyed 6 | . . 1 5 Worker 1 | . . . 1 Operator 1 | . . . 1 Watcher 1 | . . . 1 Swarmer 10 | . . . 10 Grunt 3 | . . 1 2 Sentry 4 | . . . 4 Best Kill Streak 7 | . . 1 7 Combat Bots Only 5 | . . 1 5 Max Kills in Single Turn 3 | . . 1 3 Gunslinging 1 | . . . 1 Exploded 3 | . . . 3 Melee . | . . . . Uniques/NPCs Destroyed . | . . . . Combat | -11 -10 -10 -9 -------- Run | Yrd Mat Min Mat Hostile Shots Fired 155 | . 28 2 125 Missed 52 | . 10 . 42 Damage Taken 1236 | . 239 30 967 Core 1056 | . 239 20 797 Absorbed by Shields . | . . . . Redirected to Core 429 | . . 6 423 Core Remaining (%) 100 | 100 . 100 . Volleys Fired 35 | . . 2 33 Largest 2 | . . 1 2 Hottest 90 | . . 40 90 Shots Fired 54 | . . 2 52 Gun 40 | . . 2 38 Cannon . | . . . . Launcher 14 | . . . 14 Special . | . . . . Kinetic . | . . . . Thermal 2 | . . 2 . Explosive 14 | . . . 14 Electromagnetic 38 | . . . 38 Robot Hit Streak 10 | . . 1 10 Robot Miss Streak 4 | . . 1 4 Penetration Max . | . . . . Secondary Targets 2 | . . . 2 Max Gunslinging Chain 1 | . . . 1 Shots Hit Robots 35 | . . 1 34 Core Hits 32 | . . 1 31 Critical Kills . | . . . . Critical Parts Destroyed . | . . . . Critical Strikes . | . . . . Melee Attacks . | . . . . Impact . | . . . . Slashing . | . . . . Piercing . | . . . . Sneak Attacks . | . . . . Combat Hostiles . | . . . . Follow-up Attacks . | . . . . Damage Inflicted 1093 | . . 10 1083 Guns 457 | . . 10 447 Cannons . | . . . . Explosions 629 | . . . 629 Melee . | . . . . Ramming 7 | . . . 7 Kinetic . | . . . . Thermal 10 | . . 10 . Explosive 629 | . . . 629 Electromagnetic 447 | . . . 447 Impact . | . . . . Slashing . | . . . . Piercing . | . . . . Highest Corruption . | . . . . Average Corruption . | . . . . Corruption Purged . | . . . . Corruption Blocked . | . . . . Overload Shots . | . . . . Overflow Damage . | . . . . Projectiles . | . . . . Explosions . | . . . . Melee . | . . . . Knockbacks . | . . . . Impact . | . . . . Kinetic . | . . . . Secondary . | . . . . Self-Inflicted Damage 85 | . . . 85 Shots 3 | . . . 3 Rammed 2 | . . . 2 Targets Rammed 2 | . . . 2 Kicked . | . . . . Crushed . | . . . . Highest Temperature 239 | . . 7 239 Average Temperature 119 | . . 5 122 Received Heat Transfer 336 | . 138 18 180 Siege Activations . | . . . . Robots Corrupted . | . . . . Combat Hostiles . | . . . . Parts Fried 3 | . . . 3 Impact Corruptions . | . . . . Robots Melted . | . . . . Combat Hostiles . | . . . . Parts Melted 1 | . . 1 . Heat Transferred 25 | . . 25 . Parts Sabotaged . | . . . . Parts Stolen . | . . . . Parts Stripped . | . . . . Power Chain Reactions . | . . . . Alert | -11 -10 -10 -9 ------- Run | Yrd Mat Min Mat Peak Influence 771 | . 62 55 771 Initial 24 | . . 24 21 Average 260 | . 25 45 409 Maximum Alert Level 3 | . . . 3 Low Security (%) 56 | 100 100 100 28 Level 1 5 | . . . 9 Level 2 25 | . . . 41 Level 3 12 | . . . 20 Level 4 . | . . . . Level 5 . | . . . . High Security . | . . . . Max Security . | . . . . Squads Dispatched 4 | . 1 . 3 Investigation 2 | . 1 . 1 Extermination . | . . . . Reinforcement 2 | . . . 2 Assault . | . . . . Garrison . | . . . . Intercept . | . . . . Searches Triggered . | . . . . Construction Impeded . | . . . . Haulers Reinforced . | . . . . Active Scanning Responses . | . . . . Cargo Convoy Interrupts . | . . . . Stealth | -11 -10 -10 -9 --------- Run | Yrd Mat Min Mat Distress Signals 2 | . . . 2 Communications Jammed . | . . . . Distress Signals . | . . . . Times Spotted 47 | . 11 4 32 Peak Tracking Total 11 | . 11 4 8 Tactical Retreats 5 | . . . 5 Traps | -11 -10 -10 -9 ------- Run | Yrd Mat Min Mat Traps Triggered 5 | . 1 . 4 Indirectly . | . . . . Trap Hack Attempts . | . . . . Triggered . | . . . . Disarmed . | . . . . Reprogrammed . | . . . . Reused . | . . . . Traps Extracted . | . . . . Installed . | . . . . Triggered . | . . . . Machines | -11 -10 -10 -9 ---------- Run | Yrd Mat Min Mat Machines Disabled 1 | . . . 1 Max in Single Turn 1 | . . . 1 Machines Repaired . | . . . . Machines Dismantled . | . . . . Machines Sabotaged . | . . . . Overloaded Fab Kills . | . . . . Hacking | -11 -10 -10 -9 --------- Run | Yrd Mat Min Mat Machines Accessed 6 | . 2 . 4 Terminals 6 | . 2 . 4 Fabricators . | . . . . Repair Stations . | . . . . Recycling Units . | . . . . Scanalyzers . | . . . . Garrison Access . | . . . . Total Hacks 32 | . 9 . 23 Successful 20 | . 8 . 12 Failed 12 | . 1 . 11 Catastrophic . | . . . . Database Lockouts . | . . . . Manual 20 | . 6 . 14 Terminals 32 | . 9 . 23 Fabricators . | . . . . Repair Stations . | . . . . Recycling Units . | . . . . Scanalyzers . | . . . . Garrison Access . | . . . . Terminal Hacks 12 | . 5 . 7 Robot Analysis 1 | . 1 . . Prototype ID Bank 1 | . . . 1 Level Access Points 1 | . . . 1 Branch Access Points 2 | . 1 . 1 Terminal Index 2 | . 1 . 1 Hauler Manifests 2 | . 1 . 1 Registered Components 1 | . 1 . . Zone Layout 2 | . . . 2 Fabricator Hacks . | . . . . Repair Station Hacks . | . . . . Recycling Unit Hacks . | . . . . Scanalyzer . | . . . . Garrison Access Hacks . | . . . . Unauthorized Hacks 8 | . 3 . 5 Terminals 8 | . 3 . 5 Botnet 5 | . 2 . 3 Operators 3 | . 1 . 2 Fabricators . | . . . . Repair Stations . | . . . . Recycling Units . | . . . . Scanalyzers . | . . . . Garrison Access . | . . . . Data Cores Recovered . | . . . . Used . | . . . . Hacking Detections 6 | . 2 . 4 Full Trace Events . | . . . . Feedback Events . | . . . . Feedback Blocked . | . . . . Robot Schematics Acquired . | . . . . Robots Built . | . . . . Authchips . | . . . . Time . | . . . . Total Robot Build Rating . | . . . . Part Schematics Acquired . | . . . . Parts Built . | . . . . Authchips . | . . . . Time . | . . . . Total Part Build Rating . | . . . . Parts Repaired . | . . . . Time . | . . . . Parts Recycled . | . . . . Recycled Matter . | . . . . Retrieved Matter . | . . . . Retrieved Components . | . . . . Parts Scanalyzed . | . . . . Part Schematics Acquired . | . . . . Parts Damaged . | . . . . Bothacking | -11 -10 -10 -9 ------------ Run | Yrd Mat Min Mat Used RIF Installer . | . . . . Robots Hacked . | . . . . Non-combat . | . . . . Combat . | . . . . Robot Hacks Applied . | . . . . Relay Couplers Released . | . . . . Fabnet Peak Effective % . | . . . . Robots Rewired . | . . . . Allies Hacked . | . . . . Hacks Repelled . | . . . . Allies | -11 -10 -10 -9 -------- Run | Yrd Mat Min Mat Total Allies . | . . . . Largest Group . | . . . . Highest-Rated Group . | . . . . Highest-Rated Ally . | . . . . Total Orders . | . . . . Ally Attacks . | . . . . Total Damage . | . . . . Kills . | . . . . Allies Corrupted . | . . . . Allies Melted . | . . . . Intel | -11 -10 -10 -9 ------- Run | Yrd Mat Min Mat Robot Analysis Total 1 | . 1 . . Derelict Logs Recovered . | . . . . Drone Launches . | . . . . Drone Recoveries . | . . . . Exploration | -11 -10 -10 -9 ------------- Run | Yrd Mat Min Mat Turns Passed 673 | 19 131 115 408 Spaces Moved 1047 | 38 225 180 604 Core 699 | 38 225 180 256 Treads . | . . . . Legs . | . . . . Wheels . | . . . . Hover . | . . . . Flight 348 | . . . 348 Fastest Speed 37 | 50 50 50 37 Average Speed 46 | 50 50 50 44 Slowest Speed 100 | 50 50 50 100 Overloaded Moves . | . . . . Propulsion Burnouts . | . . . . Robots Hopped . | . . . . Cave-ins Triggered . | . . . . Exploration Rate (%) 39 | 3 44 45 64 Regions Visited 3 Branch Regions 1 Pre-discovered Areas 1 | . . 1 . Known Exits Taken 1 | . 1 . . Unknown Exits Taken 2 | 1 . 1 . Scrap Searched 1 | . . 1 . Spaces Dug . | . . . . Terrain Destroyed 108 | . . . 108 Melee . | . . . . Projectile . | . . . . AOE 108 | . . . 108 Terrain Rammed . | . . . . Walls Destroyed . | . . . . Machines Disabled . | . . . . Actions | -11 -10 -10 -9 --------- Run | Yrd Mat Min Mat Total 1171 | 37 242 201 691 Wait 49 | . 14 9 26 Move 1044 | 37 224 179 604 Hop . | . . . . Pick Up . | . . . . Fast Attach 10 | . . 2 8 Attach . | . . . . Detach . | . . . . Swap 4 | . . . 4 Drop 6 | . . 1 5 Fire 35 | . . 2 33 Melee . | . . . . Ram 2 | . . . 2 Kick . | . . . . Crush . | . . . . Escape Stasis . | . . . . Rewire . | . . . . Trap . | . . . . Miscellaneous 21 | . 4 8 9 Route ------- -11/Scrapyard -10/Materials (discovered 4 exits: *Mat x3 / *Min) -10/Mines -9/Materials (discovered 4 exits: *Mat x3 / Min) History --------- Turn | Location | Event 4 | -11/Scrapyard | Discovered new exit (range 14) 20 | -11/Scrapyard | Entered Materials 37 | -10/Materials | Identified exit to Mines 75 | -10/Materials | Discovered new exit (range 11) 124 | -10/Materials | Discovered new exit (range 14) 134 | -10/Materials | Discovered new exit (range 16) 151 | -10/Materials | Entered Mines 158 | -10/Mines | Joined a pair of Derelicts in attacking an 0b10 outpost 209 | -10/Mines | Learned location of Storage (-8) 236 | -10/Mines | Discovered new exit (range 6) 249 | -10/Mines | Assembled infested the area 254 | -10/Mines | Assisted by a Guerilla fighting off Assembled 266 | -10/Mines | Entered Materials 268 | -9/Materials | Reached level 2 301 | -9/Materials | Identified exit to Mines 337 | -9/Materials | Build established: Hacker-Mutant 376 | -9/Materials | Identified exit to Materials 414 | -9/Materials | Reached level 3 415 | -9/Materials | Core integrity fell below 50% 442 | -9/Materials | Upgraded with Propulsion slot (x1) 517 | -9/Materials | Upgraded with Weapon slot (x1) 560 | -9/Materials | Core integrity fell below 20% 674 | -9/Materials | Destroyed by Y-45 Defender with Heavy Assault Rifle Last Messages --------------- reinforcements to Terminal M002. 00614_ Triggered Alarm Trap. 00614_ An alarm sounds. 00614_ ALERT: Alarm triggered, dispatching investigation squad. 00615_ W-16 Scout sends out distress signal. 00617_ ALERT: Hostiles spotted, dispatching reinforcements to Terminal M006. 00620_ Destroyed Sensor Array. 00623_ Visual Processing Unit fried. 00623_ W-16 Scout destroyed. 00632_ Y-45 Defender destroyed. 00632_ Door malfunctions. 00635_ Acquired 23 matter. 00636_ Acquired 84 matter. 00650_ Acquired 6 matter. 00668_ G-34 Mercenary destroyed. 00668_ Switching to secondary target: G-34 Mercenary. 00672_ G-34 Mercenary destroyed. Map ----- +----------------------------------------------------+ | ??????????????# < | | ??????????????# | | ??????????????########### ########## | | ????????????????????????# #????????? | | ????????????????????????# #????????? | | ????????????????????????# #????????? | | ????????????????????????# #????????? | | ????????????????????????# #????????? | | ????????????????????????# #????????? | | ????????????????????????# #????????? | | ???????????????###??????# #????????? | | ?????????####### ?????# #????????? | | ????????? ????# #????????? | | ????????? ##### #????????? | | ???????????????# = ########## | | ????????????????# + | | ????????????????# ### | | ????????????????# || ] #?# | | ?????????##+##### | [[ #?# | | ?????????# # [[ #?# | | ?????????# # #?# | | ?????????#""" # + | | ?????????#""" + ### | | ?????????#""" # ##########?# | | ?????????? ?# #?????????######## | | ??????######@#### ?????? | | ??????# =[%= # ?????? | | ??????# %% # #??????? ######### | | ??????# # ###+####+#####?? | | ??????# # # #?? | | ??????# r # # #??? | | ??????# gY# # #??? | | ??????# + + ##### | | ??????# = # # + | | ??????########### ################## | | ?????????????# = ### | | ?????????????# o % * | | ?????????????###+##########/######### | | ?????????????? ??# T ! [ #??? | | ?????????????# /## * #?? | | ?????????????# """ ## """ """ ##?? | | ?????????????# """ ## """ """ #??? | | ?????????????# """ ## """ """ #??? | | ?????????????# [## #??? | | ?????????????######### ???? | | ?????????????????????############???? | | | | | | | | | +----------------------------------------------------+ Best States ------------- Heat Dissipation 25 Energy Generation 10 Energy Capacity 125 Matter Stores 300 Matter Capacity 300 Sight Range 17 Terrain Scan Density 10 Armor Coverage 150 Evasion (%) 62 Offensive Hacking 20 Defensive Hacking 20 Item Schematics ----------------- None Robot Schematics ------------------ None Fabricated ------------ Nothing Alien Tech Used ----------------- None Achievements -------------- None Challenges ------------ None RPGLIKE | -11 -10 -10 -9 --------- Run | Yrd Mat Min Mat Levels Raised 2 | . . . 2 XP Earned 7283 | 3000 35 650 3598 XP Spent 5700 | . 2800 . 2900 Upgrades 11 | . 7 . 4 Propulsion Slot 1 | . . . 1 Weapon Slot 1 | . . . 1 Sight Range 1 | . 1 . . Hack Attack % 4 | . 3 . 1 Hack Defense % 4 | . 3 . 1 Protomatter Created 59 | . . . 59 Integrity Restored 454 | . 93 166 195 Core 454 | . 93 166 195 Protomatter Decayed 62 | . . 62 . Game ------ Seed MomentumLinearCleaver Manual? 0 Play Time 00:11:05 Cumulative 171.3 hours Start 2024.08.09 @ 20:32:06 End 2024.08.09 @ 20:44:44 Sessions 1 Manual Loads 0 Difficulty Rogue Special Mode Winter2019/RPGLIKE Game No. 176 Rogue 176 Adventurer 0 Explorer 0 Win Type - Total 13 Types 11/0/0/1/0/0/1/0/0 Lore% 44 Gallery% 62 Achievement% 68 Wizard Run 0 Options --------- Layout 1 ASCII 0 Keyboard 0 Movement Numpad Keybinds 0 Fullscreen 1 Font 24/Smallcaps Map View 50x35 Zoom Use 0% Tactical HUD 1 Map Filters NONE Filters NONE Steam 1 RUN: e96d5e49-742a-4f46-9e02-cf430f6d27ad